Cogmind - Beta 14 @@@ ROGUE MODE // 2024.11.01 @ 02:27:06 Player: Kole Result: Destroyed by Y-45 Defender with Beam Rifle Performance ------------- Evolutions (1) 500 Regions Visited (2) 400 Robots Destroyed (16) 80 Value Destroyed (436) 436 Prototype IDs (1) 20 Alien Tech Used (0) 0 Bonus (0) 0 TOTAL SCORE: 1436 Bonus ------- None Cogmind --------- Core Integrity 0/400 Matter 269/300 Energy 99/100 System Corruption 0% Temperature Cool (9) Movement Core (50) Location -9/Materials Parts ------- > --- POWER (1) -------- (None) > --- PROPULSION (2) --- (None) > --- UTILITY (4) ------ Signal Interpreter > --- WEAPON (2) ------- (None) > --- INVENTORY (5) ---- Ion Engine Large Storage Unit Terrain Scan Processor Peak State ------------ > --- POWER ------------ Ion Engine > --- PROPULSION ------- Light Treads Light Treads > --- UTILITY ---------- Small Storage Unit Terrain Scanner > --- WEAPON ----------- Medium Laser Assault Rifle > --- INVENTORY -------- Ion Engine Small Laser [Rating: 7] Favorites ----------- Power Ion Engine Engine Ion Engine Propulsion Light Treads Treads Light Treads Hover Unit Backup Propulsion I Flight Unit Flight Unit Utility Targeting Computer Device Terrain Scanner Storage Small Storage Unit Processor Targeting Computer Protection Weapon Shielding Weapon Medium Laser Energy Gun Medium Laser Ballistic Gun Assault Rifle Special Melee Weapon Datajack Build | -11 -10 -9 ------- Run | Yrd Mat Mat Slots Evolved 2 | . . 2 Power . | . . . Propulsion . | . . . Utility 2 | . . 2 Weapon . | . . . Parts Attached 27 | 6 15 6 Power 4 | 1 1 2 Engine 4 | 1 1 2 Core . | . . . Reactor . | . . . Propulsion 8 | 2 5 1 Treads 6 | 2 4 . Leg . | . . . Wheel . | . . . Hover 1 | . 1 . Flight 1 | . . 1 Utility 8 | 1 5 2 Device 2 | . 1 1 Storage 2 | 1 . 1 Processor 2 | . 2 . Hackware . | . . . Protection 2 | . 2 . Artifact . | . . . Weapon 7 | 2 4 1 Energy Gun 2 | 1 1 . Energy Cannon . | . . . Ballistic Gun 3 | 1 1 1 Ballistic Cannon . | . . . Launcher . | . . . Special Weapon . | . . . Impact Weapon . | . . . Slashing Weapon . | . . . Piercing Weapon . | . . . Special Melee Weapon 2 | . 2 . Unidentified Prototypes 1 | . . 1 Parts Lost 13 | . 5 8 Power 3 | . 1 2 Propulsion 4 | . 1 3 Utility 2 | . . 2 Weapon 4 | . 3 1 Highest Loss Streak 5 | . 5 4 To Critical Strikes . | . . . Average Slot Usage (%) 86 | . 96 60 Engine 12 | . 14 9 Treads 21 | . 26 6 Hover 2 | . . 7 Device 2 | . . 7 Storage 2 | . 1 6 Processor 17 | . 16 21 Protection 6 | . 8 . Energy Gun 9 | . 12 . Ballistic Gun 7 | . 9 1 Special Melee Weapon 2 | . 3 . Peak Build Rating 7 | 6 7 7 Average Rating 6 | 5 6 6 On Entrance 3 | . 6 5 Naked Turns . | . . . Heaviest Build 26 | 14 15 26 Greatest Support 40 | 40 40 20 Greatest Overweight (x) 3 | . . 3 Average Overweight (x) . | . . . Largest Inventory Capacity 15 | 8 8 15 Average Capacity 6 | 7 5 10 Most Carried 5 | 5 5 4 Average Carried 3 | 2 4 1 Final Capacity 8 | 8 5 5 Final Carried 3 | 2 3 3 Class Distribution -------------------- 100% | Mutant Dominant Class ---------------- Mutant | -10/Materials Mutant | -9/Materials Resources | -11 -10 -9 ----------- Run | Yrd Mat Mat Matter Collected 454 | 231 208 15 Remotely . | . . . Salvage Created 478 | . 347 131 Parts 36 | . 27 9 Haulers Intercepted . | . . . Recyclers Shooed . | . . . Parts Field Recycled . | . . . Retrieved Matter . | . . . Parts Self-Destructed . | . . . Prevented . | . . . Kills | -11 -10 -9 ------- Run | Yrd Mat Mat Combat Hostiles Destroyed 14 | . 10 4 Melee 2 | . 2 . Guns 12 | . 8 4 Classes Destroyed 4 | . 4 . Operator 1 | . 1 . Watcher 1 | . 1 . Swarmer 3 | . 1 2 Grunt 11 | . 9 2 Best Kill Streak 4 | . 4 4 Combat Bots Only 4 | . 4 4 Max Kills in Single Turn 1 | . 1 1 Gunslinging . | . . . Exploded . | . . . Melee 1 | . 1 . Uniques/NPCs Destroyed . | . . . Combat | -11 -10 -9 -------- Run | Yrd Mat Mat Hostile Shots Fired 212 | . 116 96 Missed 57 | . 33 24 Damage Taken 1611 | . 877 734 Core 565 | . 156 409 Absorbed by Shields . | . . . Redirected to Shielding 23 | . 23 . Regen/Repaired (Parts) 125 | . 125 . Core Remaining (%) 68 | 100 37 . Volleys Fired 44 | . 34 10 Largest 2 | . 2 1 Hottest 70 | . 70 23 Shots Fired 77 | . 67 10 Gun 77 | . 67 10 Cannon . | . . . Launcher . | . . . Special . | . . . Kinetic 43 | . 33 10 Thermal 34 | . 34 . Explosive . | . . . Electromagnetic . | . . . Robot Hit Streak 6 | . 6 3 Robot Miss Streak 4 | . 3 4 Penetration Max . | . . . Secondary Targets 2 | . 2 . Max Gunslinging Chain 1 | . 1 . Shots Hit Robots 47 | . 40 7 Core Hits 27 | . 19 8 Critical Kills 1 | . 1 . Critical Parts Destroyed . | . . . Critical Strikes 4 | . 4 . Burn 3 | . 3 . Destroy 1 | . 1 . Melee Attacks 6 | . 6 . Impact . | . . . Slashing . | . . . Piercing . | . . . Sneak Attacks 4 | . 4 . Combat Hostiles . | . . . Follow-up Attacks . | . . . Damage Inflicted 621 | . 470 151 Guns 572 | . 456 116 Cannons . | . . . Explosions . | . . . Melee . | . . . Ramming 49 | . 14 35 Kinetic 371 | . 255 116 Thermal 201 | . 201 . Explosive . | . . . Electromagnetic . | . . . Impact . | . . . Slashing . | . . . Piercing . | . . . Highest Corruption 1 | . 1 . Average Corruption 1 | . 1 . Corruption Purged . | . . . Corruption Blocked . | . . . Overload Shots . | . . . Overflow Damage . | . . . Projectiles . | . . . Explosions . | . . . Melee . | . . . Knockbacks . | . . . Impact . | . . . Kinetic . | . . . Secondary . | . . . Self-Inflicted Damage 16 | . . 16 Shots . | . . . Rammed 18 | . 7 11 Targets Rammed 20 | . 9 11 Kicked . | . . . Crushed 2 | . 2 . Highest Temperature 132 | . 132 8 Average Temperature 31 | . 33 5 Received Heat Transfer 708 | . 414 294 Siege Activations . | . . . Robots Corrupted . | . . . Combat Hostiles . | . . . Parts Fried . | . . . Impact Corruptions . | . . . Robots Melted . | . . . Combat Hostiles . | . . . Parts Melted 3 | . 3 . Heat Transferred 814 | . 814 . Parts Sabotaged . | . . . Parts Stolen . | . . . Parts Stripped . | . . . Power Chain Reactions . | . . . Alert | -11 -10 -9 ------- Run | Yrd Mat Mat Peak Influence 165 | . 165 165 Initial 24 | . . 24 Average 54 | . 78 44 Maximum Alert Level . | . . . Low Security (%) 100 | 100 100 100 Level 1 . | . . . Level 2 . | . . . Level 3 . | . . . Level 4 . | . . . Level 5 . | . . . High Security . | . . . Max Security . | . . . Squads Dispatched 6 | . 5 1 Investigation 3 | . 3 . Extermination . | . . . Reinforcement 3 | . 2 1 Assault . | . . . Garrison . | . . . Intercept . | . . . Searches Triggered . | . . . Construction Impeded . | . . . Haulers Reinforced . | . . . Active Scanning Responses . | . . . Cargo Convoy Interrupts . | . . . Stealth | -11 -10 -9 --------- Run | Yrd Mat Mat Distress Signals 1 | . 1 . Communications Jammed . | . . . Distress Signals . | . . . Times Spotted 39 | . 25 14 Peak Tracking Total 6 | . 5 6 Tactical Retreats 3 | . 1 2 Traps | -11 -10 -9 ------- Run | Yrd Mat Mat Traps Triggered 2 | . 2 . Indirectly . | . . . Trap Hack Attempts 12 | . 12 . Triggered . | . . . Disarmed . | . . . Reprogrammed 1 | . 1 . Reused 1 | . 1 . Traps Extracted . | . . . Installed . | . . . Triggered 1 | . 1 . Machines | -11 -10 -9 ---------- Run | Yrd Mat Mat Machines Disabled . | . . . Max in Single Turn . | . . . Machines Repaired . | . . . Machines Dismantled . | . . . Machines Sabotaged . | . . . Overloaded Fab Kills . | . . . Hacking | -11 -10 -9 --------- Run | Yrd Mat Mat Machines Accessed 7 | . 4 3 Terminals 4 | . 2 2 Fabricators . | . . . Repair Stations 1 | . 1 . Recycling Units 2 | . 1 1 Scanalyzers . | . . . Garrison Access . | . . . Total Hacks 21 | . 13 8 Successful 10 | . 7 3 Failed 11 | . 6 5 Catastrophic 1 | . . 1 Database Lockouts . | . . . Manual 5 | . 2 3 Terminals 11 | . 5 6 Fabricators . | . . . Repair Stations 5 | . 5 . Recycling Units 5 | . 3 2 Scanalyzers . | . . . Garrison Access . | . . . Terminal Hacks 2 | . 1 1 Zone Layout 2 | . 1 1 Fabricator Hacks . | . . . Repair Station Hacks 4 | . 4 . Scan Component 2 | . 2 . Repair 1 | . 1 . Refit 1 | . 1 . Recycling Unit Hacks 4 | . 2 2 Process 1 | . 1 . Report Inventory 2 | . 1 1 Retrieve Components 1 | . . 1 Scanalyzer . | . . . Garrison Access Hacks . | . . . Unauthorized Hacks . | . . . Terminals . | . . . Fabricators . | . . . Repair Stations . | . . . Recycling Units . | . . . Scanalyzers . | . . . Garrison Access . | . . . Data Cores Recovered 1 | . 1 . Used . | . . . Hacking Detections 6 | . 4 2 Full Trace Events 5 | . 4 1 Feedback Events 1 | . 1 . Corruption 1 | . 1 . Feedback Blocked . | . . . Robot Schematics Acquired . | . . . Robots Built . | . . . Authchips . | . . . Time . | . . . Total Robot Build Rating . | . . . Part Schematics Acquired . | . . . Parts Built . | . . . Authchips . | . . . Time . | . . . Total Part Build Rating . | . . . Parts Repaired 1 | . 1 . Time 26 | . 26 . Parts Recycled . | . . . Recycled Matter 27 | . 27 . Retrieved Matter . | . . . Retrieved Components 3 | . . 3 Parts Scanalyzed . | . . . Part Schematics Acquired . | . . . Parts Damaged . | . . . Bothacking | -11 -10 -9 ------------ Run | Yrd Mat Mat Used RIF Installer . | . . . Robots Hacked 1 | . 1 . Non-combat 1 | . 1 . Combat . | . . . Robot Hacks Applied 4 | . 4 . no_distress 2 | . 2 . find_station 2 | . 2 . Relay Couplers Released . | . . . Fabnet Peak Effective % . | . . . Robots Rewired . | . . . Allies Hacked . | . . . Hacks Repelled . | . . . Allies | -11 -10 -9 -------- Run | Yrd Mat Mat Total Allies . | . . . Largest Group . | . . . Highest-Rated Group . | . . . Highest-Rated Ally . | . . . Total Orders . | . . . Ally Attacks . | . . . Total Damage . | . . . Kills . | . . . Allies Corrupted . | . . . Allies Melted . | . . . Intel | -11 -10 -9 ------- Run | Yrd Mat Mat Robot Analysis Total . | . . . Derelict Logs Recovered . | . . . Drone Launches . | . . . Drone Recoveries . | . . . Exploration | -11 -10 -9 ------------- Run | Yrd Mat Mat Turns Passed 1571 | 323 917 331 Spaces Moved 724 | 65 455 204 Core 95 | 17 . 78 Treads 564 | 48 440 76 Legs . | . . . Wheels . | . . . Hover 61 | . 15 46 Flight 4 | . . 4 Fastest Speed 50 | 50 100 50 Average Speed 151 | 131 158 142 Slowest Speed 240 | 160 160 240 Overloaded Moves . | . . . Propulsion Burnouts . | . . . Robots Hopped . | . . . Cave-ins Triggered . | . . . Exploration Rate (%) 20 | 6 38 18 Regions Visited 2 Branch Regions . Pre-discovered Areas . | . . . Known Exits Taken 1 | . 1 . Unknown Exits Taken 1 | 1 . . Scrap Searched . | . . . Spaces Dug . | . . . Terrain Destroyed . | . . . Melee . | . . . Projectile . | . . . AOE . | . . . Terrain Rammed . | . . . Walls Destroyed . | . . . Machines Disabled . | . . . Actions | -11 -10 -9 --------- Run | Yrd Mat Mat Total 1115 | 302 576 237 Wait 256 | 225 31 . Move 722 | 64 454 204 Hop . | . . . Pick Up 19 | 7 8 4 Fast Attach 7 | 1 6 . Attach 15 | 5 4 6 Detach 2 | . . 2 Swap 5 | . 5 . Drop 7 | . 7 . Fire 44 | . 34 10 Melee 6 | . 6 . Ram 11 | . . 11 Kick . | . . . Crush 9 | . 9 . Escape Stasis . | . . . Rewire . | . . . Trap 12 | . 12 . Miscellaneous . | . . . Route ------- -11/Scrapyard -10/Materials -9/Materials (discovered 1 exit: [*Sto]) History --------- Turn | Location | Event 9 | -11/Scrapyard | Discovered new exit (range 15) 324 | -11/Scrapyard | Entered Materials 325 | -10/Materials | Build established: Mutant 541 | -10/Materials | Discovered new exit (range 14) 1012 | -10/Materials | Repaired Lgt. Treads 1222 | -10/Materials | Lost 5 parts (1p1n3w) 1223 | -10/Materials | Core integrity fell below 50% 1239 | -10/Materials | Identified exit to Materials 1241 | -10/Materials | Entered another Materials area 1241 | -9/Materials | Evolved 2 slots: Utility x2 1484 | -9/Materials | Core integrity fell below 50% 1503 | -9/Materials | Lost 3 parts (1p1n1u) 1553 | -9/Materials | Core integrity fell below 20% 1569 | -9/Materials | Discovered new exit (range 16) 1572 | -9/Materials | Destroyed by Y-45 Defender with Beam Rifle Last Messages --------------- Acquired 15 matter. R-06 Scavenger collects Lgt. Ion Engine. R-06 Scavenger collects Lgt. Assault Rifle. Acquired Flight Unit. Autogun destroyed. Flight Unit destroyed. K-01 Serf collects debris. K-01 Serf cleans the Fusion Modulator. K-01 Serf collects debris. Slammed into S-10 Pest. Destabilizing: System interference. Targeting Computer temporarily disabled. Hvy. Ion Engine destroyed. Slammed into S-10 Pest. Targeting Computer broken. Destabilizing: Short circuit. Broken Targeting Computer destroyed. Slammed into S-10 Pest. K-01 Serf collects debris. EXIT=FOUND Map ----- +----------------------------------------------------+ | ???????????????????????????????????????????????### | | ???????????????????????????????????????????????# | | ?????????????????????????????????????????????#?# | | ???????????????????????????????????????????????# | | ???????????????????????????????????????????#???# " | | ?????????????????????????????????????????????### " | | ??????????????????????????????????????? ?????? # " | | ?????????????????????????????????????????? ??? # | | ?????????????????????????????????????#???????? ### | | ??????????????????????????????????????????? ?? # | | ?????????????????????????????????? ????????? # | | ?????????????????????????????????? #???????? # | | ?????????????????????????????????? #????? ?? # | | ?????????????????????????????????# #??????? # | | ?????????????????????????????????# #???#???### | | ?????????????????????????????????# #?????????# | | ?????????????????????????????????# #??????#??# " | | ?????????????????????????????????# #?#???????# " | | ?????????????????????????######??# #?????????# " | | ????????????????????????##!!!!##?# #??????##?# | | ????????????????????????#! !#?# #?????????### | | ????????????## ?????????# #?# #?????#?#???? | | ????????????# ###+### ### ############# | | ????????????# | | ????????????# Y us | | ????????????# @ g m | | ????????????# #### ##########+### ######## | | ????????????????????# ?????# ## #??????? | | ????????????????????# Y??????# """ ## ##?????? | | ????????????????????# ??????# """ ## #??????? | | ????????????????????# ???????# """ ## #??????? | | ????????????????????# a???????# ## #??????? | | ????????????????????##????????# """ ## ##?????? | | ??????????????????????????????# """ # ####### | | ??????????????????????????????# """ %#% | | ??????????????????????????????# %/ T | | ??????????????????????????????# # | | ??????????????????????????????# # #### | | ??????????????????????????????# "Y" ##### #???? | | ??????????????????????????????# """ #???? #????? | | ??????????????????????????????########???? #?????? | | ?????????????????????????????????????????? #?????? | | ?????????????????????????????????????????? #?????? | | ?????????????????????????????????????????? #?????? | | ???????????????????????????????????????????#?????? | | ?????????????????????????????????????????????????? | | ?????????????????????????????????????????????????? | | ?????????????????????????????????????????????????? | | ?????????????????????????????????????????????????? | | ?????????????????????????????????????????????????? | +----------------------------------------------------+ Best States ------------- Heat Dissipation 28 Energy Generation 14 Energy Capacity 280 Matter Stores 300 Matter Capacity 300 Sight Range 16 Terrain Scan Range 14 Terrain Scan Density 10 Armor Coverage 150 Weapon Shielding 33 Evasion (%) 50 Targeting Accuracy 5 Recoil Reduction 2 Item Schematics ----------------- None Robot Schematics ------------------ None Fabricated ------------ Nothing Alien Tech Used ----------------- None Achievements -------------- Hehehe Part-time Mechanic Challenges ------------ None Game ------ Seed ArmorMultinovaRifle Manual? 0 Play Time 00:19:58 Cumulative 1.9 hours Start 2024.11.01 @ 02:08:02 End 2024.11.01 @ 02:27:06 Sessions 1 Manual Loads 0 Difficulty Rogue Special Mode None Game No. 4 Rogue 4 Adventurer 0 Explorer 0 Win Type - Total 0 Types 0/0/0/0/0/0/0/0/0 Lore% 0 Gallery% 4 Achievement% 5 Wizard Run 0 Options --------- Layout 1 ASCII 0 Keyboard 0 Movement Arrows Keybinds 0 Fullscreen 2 Font 24/Smallcaps Map View 50x35 Zoom Use 0% Tactical HUD 0 Map Filters NONE Filters NONE Steam 1 RUN: 0102f1f1-59c4-4026-93c3-1941a6a650fc